[Event "Schack-SM 2023: Sverigemastarklassen"]
[Site "Helsingborg Arena, Mellersta Stenbocksgatan 14, Helsingborg, Sweden"]
[Date "2023.07.09"]
[Round "9.2"]
[White "Olsson, William"]
[Black "Pantzar, Milton"]
[Result "1/2-1/2"]
[TimeControl "90 minutes for 40 moves + 30 minutes for the rest of the game + 30 seconds per move from move one."]
[WhiteTitle "FM"]
[BlackTitle "IM"]
[WhiteFideId "1741721"]
[BlackFideId "1721003"]
[WhiteElo "2383"]
[BlackElo "2442"]

1. c4 {[%clk 01:30:57]} {[%emt 00:00:03]} e6 {[%clk 01:30:40]} {[%emt
00:00:20]} 2. Nf3 {[%clk 01:31:23]} {[%emt 00:00:04]} d5 {[%clk 01:30:45]}
{[%emt 00:00:25]} 3. g3 {[%clk 01:31:49]} {[%emt 00:00:04]} Nf6 {[%clk
01:30:40]} {[%emt 00:00:34]} 4. Bg2 {[%clk 01:32:12]} {[%emt 00:00:07]} dxc4
{[%clk 01:29:34]} {[%emt 00:01:36]} 5. Qa4+ {[%clk 01:32:38]} {[%emt 00:00:05]}
Bd7 {[%clk 01:27:31]} {[%emt 00:02:33]} 6. Qxc4 {[%clk 01:32:49]} {[%emt
00:00:18]} c5 {[%clk 01:27:27]} {[%emt 00:00:34]} 7. Ne5 {[%clk 01:33:10]}
{[%emt 00:00:09]} Qc8 {[%clk 01:27:02]} {[%emt 00:00:56]} 8. O-O {[%clk
01:31:05]} {[%emt 00:02:36]} Nc6 {[%clk 01:26:36]} {[%emt 00:00:55]} 9. Nxd7
{[%clk 01:31:29]} {[%emt 00:00:06]} Qxd7 {[%clk 01:26:44]} {[%emt 00:00:22]} 10.
b3 {[%clk 01:30:27]} {[%emt 00:01:32]} Be7 {[%clk 01:24:53]} {[%emt 00:02:20]}
11. Bb2 {[%clk 01:30:53]} {[%emt 00:00:04]} O-O {[%clk 01:22:39]} {[%emt
00:02:44]} 12. Rd1 {[%clk 01:23:29]} {[%emt 00:07:54]} Rac8 {[%clk 01:21:07]}
{[%emt 00:02:02]} 13. Nc3 {[%clk 01:22:54]} {[%emt 00:01:03]} Rfd8 {[%clk
01:15:28]} {[%emt 00:06:11]} 14. Ne4 {[%clk 01:19:24]} {[%emt 00:04:00]} Nxe4
{[%clk 01:06:23]} {[%emt 00:09:35]} 15. Bxe4 {[%clk 01:19:36]} {[%emt
00:00:19]} b6 {[%clk 01:03:34]} {[%emt 00:03:19]} 16. Rac1 {[%clk 01:17:54]}
{[%emt 00:02:12]} Bf8 {[%clk 00:58:29]} {[%emt 00:05:36]} 17. Qa4 {[%clk
01:09:11]} {[%emt 00:09:13]} Nd4 {[%clk 00:54:43]} {[%emt 00:04:15]} 18. Qxd7
{[%clk 01:09:32]} {[%emt 00:00:09]} Rxd7 {[%clk 00:55:02]} {[%emt 00:00:11]} 19.
Kf1 {[%clk 01:09:52]} {[%emt 00:00:09]} Rcd8 {[%clk 00:44:11]} {[%emt
00:11:22]} 20. e3 {[%clk 01:08:44]} {[%emt 00:01:38]} Nf5 {[%clk 00:44:22]}
{[%emt 00:00:18]} 21. Ke2 {[%clk 01:08:24]} {[%emt 00:00:50]} g6 {[%clk
00:42:34]} {[%emt 00:02:18]} 22. g4 {[%clk 01:04:42]} {[%emt 00:04:09]} Ne7
{[%clk 00:41:23]} {[%emt 00:01:44]} 23. a3 {[%clk 01:01:28]} {[%emt 00:03:44]}
f5 {[%clk 00:35:58]} {[%emt 00:05:55]} 24. Bf3 {[%clk 01:00:22]} {[%emt
00:01:36]} Nd5 {[%clk 00:34:20]} {[%emt 00:02:07]} 25. h4 {[%clk 00:59:57]}
{[%emt 00:00:55]} Bg7 {[%clk 00:27:35]} {[%emt 00:07:17]} 26. Bxg7 {[%clk
01:00:09]} {[%emt 00:00:18]} Kxg7 {[%clk 00:27:57]} {[%emt 00:00:07]} 27. d4
{[%clk 00:58:23]} {[%emt 00:02:16]} fxg4 {[%clk 00:17:10]} {[%emt 00:11:17]} 28.
Bxg4 {[%clk 00:58:02]} {[%emt 00:00:51]} Kf7 {[%clk 00:16:40]} {[%emt
00:01:00]} 29. Bf3 {[%clk 00:49:55]} {[%emt 00:08:38]} a5 {[%clk 00:11:04]}
{[%emt 00:06:05]} 30. Ke1 {[%clk 00:41:55]} {[%emt 00:08:30]} cxd4 {[%clk
00:10:42]} {[%emt 00:00:52]} 31. Rxd4 {[%clk 00:42:17]} {[%emt 00:00:08]} Ne7
{[%clk 00:10:17]} {[%emt 00:00:56]} 32. Rxd7 {[%clk 00:40:52]} {[%emt
00:01:55]} Rxd7 {[%clk 00:10:45]} {[%emt 00:00:02]} 33. Ke2 {[%clk 00:41:00]}
{[%emt 00:00:21]} Kf6 {[%clk 00:09:47]} {[%emt 00:01:28]} 34. Rc4 {[%clk
00:40:55]} {[%emt 00:00:34]} h6 {[%clk 00:08:12]} {[%emt 00:02:05]} 35. e4
{[%clk 00:34:12]} {[%emt 00:07:14]} g5 {[%clk 00:07:18]} {[%emt 00:01:24]} 36.
hxg5+ {[%clk 00:34:24]} {[%emt 00:00:17]} hxg5 {[%clk 00:07:33]} {[%emt
00:00:15]} 37. Ke3 {[%clk 00:33:55]} {[%emt 00:01:00]} Ng6 {[%clk 00:06:52]}
{[%emt 00:01:11]} 38. Be2 {[%clk 00:31:57]} {[%emt 00:02:27]} Ke5 {[%clk
00:05:08]} {[%emt 00:02:14]} 39. Rc6 {[%clk 00:29:17]} {[%emt 00:03:10]} Rd6
{[%clk 00:05:17]} {[%emt 00:00:21]} 40. Rxd6 {[%clk 00:29:05]} {[%emt
00:00:42]} Kxd6 {[%clk 00:05:41]} {[%emt 00:00:05]} 41. Kd4 {[%clk 00:29:15]}
{[%emt 00:00:19]} e5+ {[%clk 00:01:42]} {[%emt 00:04:28]} 42. Kc4 {[%clk
00:28:00]} {[%emt 00:01:42]} Ne7 {[%clk 00:30:15]} {[%emt 00:02:00]} 43. Bg4
{[%clk 00:52:49]} {[%emt 00:05:42]} Ng8 {[%clk 00:28:08]} {[%emt 00:02:37]} 44.
Kb5 {[%clk 00:48:44]} {[%emt 00:04:33]} Kc7 {[%clk 00:28:14]} {[%emt 00:00:25]}
45. b4 {[%clk 00:47:53]} {[%emt 00:01:21]} axb4 {[%clk 00:28:06]} {[%emt
00:00:37]} 46. axb4 {[%clk 00:48:07]} {[%emt 00:00:18]} Nf6 {[%clk 00:27:50]}
{[%emt 00:00:45]} 47. f3 {[%clk 00:48:30]} {[%emt 00:00:07]} Kb7 {[%clk
00:25:53]} {[%emt 00:02:27]} 48. Kc4 {[%clk 00:48:41]} {[%emt 00:00:19]} Kc6
{[%clk 00:26:06]} {[%emt 00:00:15]} 49. Bf5 {[%clk 00:48:37]} {[%emt 00:00:32]}
Ne8 {[%clk 00:25:17]} {[%emt 00:01:21]} 50. Bg4 {[%clk 00:49:04]} {[%emt
00:00:03]} Nd6+ {[%clk 00:25:42]} {[%emt 00:00:05]} 51. Kb3 {[%clk 00:49:14]}
{[%emt 00:00:21]} Kc7 {[%clk 00:20:42]} {[%emt 00:05:30]} 52. Kc3 {[%clk
00:49:06]} {[%emt 00:00:37]} Kd8 {[%clk 00:20:09]} {[%emt 00:01:04]} 1/2-1/2

[ePGN "0.1;DGT LiveChess/2.2.5"]

[Event "Schack-SM 2023: Mastarklassen-elit"]
[Site "Helsingborg Arena, Mellersta Stenbocksgatan 14, Helsingborg, Sweden"]
[Date "2023.07.09"]
[Round "9.1"]
[White "Thorn, Eric"]
[Black "Wiedenkeller, Michael"]
[Result "1-0"]
[TimeControl "90 minutes for 40 moves + 30 minutes for the rest of games + 30 seconds per move from move one."]
[WhiteTitle "FM"]
[BlackTitle "IM"]
[WhiteElo "2379"]
[BlackElo "2445"]

1. d4 {[%clk 01:30:55]} {[%emt 00:00:05]} d5 {[%clk 01:30:39]} {[%emt
00:00:22]} 2. c4 {[%clk 01:31:11]} {[%emt 00:00:14]} dxc4 {[%clk 01:27:36]}
{[%emt 00:03:32]} 3. Nf3 {[%clk 01:31:12]} {[%emt 00:00:30]} Nf6 {[%clk
01:27:46]} {[%emt 00:00:21]} 4. e3 {[%clk 01:31:37]} {[%emt 00:00:04]} e6
{[%clk 01:28:09]} {[%emt 00:00:06]} 5. Bxc4 {[%clk 01:32:02]} {[%emt 00:00:05]}
c5 {[%clk 01:28:20]} {[%emt 00:00:20]} 6. O-O {[%clk 01:32:25]} {[%emt
00:00:07]} a6 {[%clk 01:28:44]} {[%emt 00:00:06]} 7. a4 {[%clk 01:32:50]}
{[%emt 00:00:05]} Nc6 {[%clk 01:27:21]} {[%emt 00:01:52]} 8. Qe2 {[%clk
01:32:06]} {[%emt 00:01:15]} cxd4 {[%clk 01:26:38]} {[%emt 00:01:13]} 9. Rd1
{[%clk 01:32:28]} {[%emt 00:00:08]} Be7 {[%clk 01:26:33]} {[%emt 00:00:34]} 10.
exd4 {[%clk 01:32:44]} {[%emt 00:00:14]} O-O {[%clk 01:26:42]} {[%emt
00:00:20]} 11. Nc3 {[%clk 01:33:11]} {[%emt 00:00:05]} Nd5 {[%clk 01:25:23]}
{[%emt 00:01:49]} 12. Bb3 {[%clk 01:31:26]} {[%emt 00:02:15]} Ncb4 {[%clk
01:17:07]} {[%emt 00:08:45]} 13. Ne5 {[%clk 01:29:04]} {[%emt 00:02:53]} b6
{[%clk 00:54:41]} {[%emt 00:22:56]} 14. Nxd5 {[%clk 01:17:21]} {[%emt
00:12:13]} exd5 {[%clk 00:54:42]} {[%emt 00:00:28]} 15. Bd2 {[%clk 01:17:10]}
{[%emt 00:00:42]} Bb7 {[%clk 00:49:19]} {[%emt 00:05:52]} 16. Qg4 {[%clk
01:11:10]} {[%emt 00:06:29]} Qc8 {[%clk 00:37:13]} {[%emt 00:12:37]} 17. Qf3
{[%clk 01:07:38]} {[%emt 00:04:02]} Qd8 {[%clk 00:29:40]} {[%emt 00:08:04]} 18.
Rac1 {[%clk 01:01:43]} {[%emt 00:06:24]} a5 {[%clk 00:29:24]} {[%emt 00:00:47]}
19. Qg3 {[%clk 00:49:09]} {[%emt 00:13:04]} Qd6 {[%clk 00:25:56]} {[%emt
00:03:57]} 20. Bf4 {[%clk 00:48:13]} {[%emt 00:01:26]} Qe6 {[%clk 00:23:56]}
{[%emt 00:02:30]} 21. Re1 {[%clk 00:33:00]} {[%emt 00:15:43]} Bd6 {[%clk
00:22:46]} {[%emt 00:01:40]} 22. Rc3 {[%clk 00:24:41]} {[%emt 00:08:49]} Rae8
{[%clk 00:14:28]} {[%emt 00:08:47]} 23. Rce3 {[%clk 00:24:44]} {[%emt
00:00:28]} Rc8 {[%clk 00:06:38]} {[%emt 00:08:20]} 24. h4 {[%clk 00:21:30]}
{[%emt 00:03:44]} Nc2 {[%clk 00:04:32]} {[%emt 00:02:36]} 25. Bxc2 {[%clk
00:19:46]} {[%emt 00:02:15]} Rxc2 {[%clk 00:05:00]} {[%emt 00:00:01]} 26. Ng4
{[%clk 00:19:21]} {[%emt 00:00:55]} Bxf4 {[%clk 00:05:15]} {[%emt 00:00:16]} 27.
Qxf4 {[%clk 00:19:46]} {[%emt 00:00:04]} Qc6 {[%clk 00:04:41]} {[%emt
00:01:04]} 28. Rg3 {[%clk 00:19:23]} {[%emt 00:00:53]} Qc7 {[%clk 00:01:01]}
{[%emt 00:04:11]} 29. Nf6+ {[%clk 00:18:48]} {[%emt 00:01:04]} Kh8 {[%clk
00:01:10]} {[%emt 00:00:21]} 30. Rxg7 {[%clk 00:19:12]} {[%emt 00:00:06]} Qxf4
{[%clk 00:00:37]} {[%emt 00:01:04]} 31. Rxh7# {[%clk 00:19:37]} {[%emt
00:00:04]} 1-0

[Event "Schack-SM 2023: Junior-SM"]
[Site "Helsingborg Arena, Mellersta Stenbocksgatan 14, Helsingborg, Sweden"]
[Date "2023.07.09"]
[Round "9.4"]
[White "Falkevall, Axel"]
[Black "Dingertz, Erik"]
[Result "1/2-1/2"]
[TimeControl "90 minutes for 40 moves + 30 minutes for the rest of the game + 30 seconds per move from move one."]
[WhiteTitle "FM"]
[WhiteElo "2311"]
[BlackElo "2090"]

1. e4 {[%clk 01:30:35]} {[%emt 00:00:24]} e5 {[%clk 01:30:49]} {[%emt
00:00:11]} 2. Nf3 {[%clk 01:30:57]} {[%emt 00:00:08]} Nc6 {[%clk 01:31:15]}
{[%emt 00:00:04]} 3. Bc4 {[%clk 01:31:07]} {[%emt 00:00:20]} Bc5 {[%clk
01:31:37]} {[%emt 00:00:08]} 4. d3 {[%clk 01:30:10]} {[%emt 00:01:28]} Nf6
{[%clk 01:31:48]} {[%emt 00:00:19]} 5. Nc3 {[%clk 01:28:59]} {[%emt 00:01:40]}
O-O {[%clk 01:31:31]} {[%emt 00:00:48]} 6. O-O {[%clk 01:27:11]} {[%emt
00:02:18]} h6 {[%clk 01:19:40]} {[%emt 00:12:21]} 7. Be3 {[%clk 01:27:18]}
{[%emt 00:00:22]} Bxe3 {[%clk 01:20:02]} {[%emt 00:00:08]} 8. fxe3 {[%clk
01:27:44]} {[%emt 00:00:05]} d6 {[%clk 01:20:25]} {[%emt 00:00:07]} 9. a3
{[%clk 01:19:19]} {[%emt 00:04:43]} Re8 {[%clk 01:17:46]} 10. Nh4 {[%clk
01:19:19]} Be6 {[%clk 01:17:46]} {[%emt 00:08:21]} 11. Bxe6 {[%clk 01:18:26]}
Rxe6 {[%clk 01:18:10]} {[%emt 00:01:29]} 12. Qf3 {[%clk 01:16:23]} Ne7 {[%clk
01:16:59]} {[%emt 00:04:14]} 13. Nd5 {[%clk 01:09:13]} c6 {[%clk 01:16:07]}
{[%emt 00:09:03]} 14. Nxe7+ {[%clk 01:07:37]} Qxe7 {[%clk 01:16:12]} {[%emt
00:02:30]} 15. Nf5 {[%clk 01:06:50]} Qf8 {[%clk 01:15:35]} {[%emt 00:02:24]} 16.
Qh3 {[%emt 00:13:54]} d5 17. exd5 {[%clk 00:59:32]} cxd5 {[%clk 01:10:53]}
{[%emt 00:00:05]} 18. Rf3 {[%clk 00:57:38]} {[%emt 00:02:23]} Kh7 {[%clk
01:08:32]} {[%emt 00:02:52]} 19. Raf1 {[%clk 00:54:24]} {[%emt 00:03:44]} Ne8
{[%clk 01:02:22]} {[%emt 00:06:40]} 20. Kh1 {[%clk 00:38:49]} {[%emt 00:16:05]}
a5 {[%clk 00:54:13]} {[%emt 00:08:40]} 21. g4 {[%clk 00:34:40]} {[%emt
00:04:38]} e4 {[%clk 00:43:42]} {[%emt 00:11:02]} 22. Rg3 {[%clk 00:31:56]}
{[%emt 00:03:14]} g6 {[%clk 00:38:51]} {[%emt 00:05:21]} 23. Nxh6 {[%clk
00:24:04]} {[%emt 00:08:22]} Qxh6 {[%clk 00:39:04]} {[%emt 00:00:17]} 24. Rxf7+
{[%clk 00:24:27]} {[%emt 00:00:06]} Ng7 {[%clk 00:39:32]} {[%emt 00:00:02]} 25.
Qxh6+ {[%clk 00:24:02]} {[%emt 00:00:55]} Kxh6 {[%clk 00:39:34]} {[%emt
00:00:28]} 26. Rh3+ {[%clk 00:24:24]} {[%emt 00:00:08]} Kg5 {[%clk 00:39:32]}
{[%emt 00:00:33]} 27. Rxg7 {[%clk 00:21:15]} {[%emt 00:03:38]} Rb6 {[%clk
00:39:53]} {[%emt 00:00:09]} 28. Rd7 {[%clk 00:20:11]} {[%emt 00:01:34]} Rxb2
{[%clk 00:37:32]} {[%emt 00:02:51]} 29. Rxd5+ {[%clk 00:20:18]} {[%emt
00:00:23]} Kf6 {[%clk 00:36:03]} {[%emt 00:01:59]} 30. Rc5 {[%clk 00:16:25]}
{[%emt 00:04:23]} exd3 {[%clk 00:33:48]} {[%emt 00:02:46]} 31. cxd3 {[%clk
00:16:36]} {[%emt 00:00:19]} b5 {[%clk 00:33:14]} {[%emt 00:01:04]} 32. d4
{[%clk 00:11:55]} {[%emt 00:05:12]} b4 {[%clk 00:31:51]} {[%emt 00:01:53]} 33.
e4 {[%clk 00:09:25]} {[%emt 00:02:59]} Rd8 {[%clk 00:31:11]} {[%emt 00:01:11]}
34. g5+ {[%clk 00:08:14]} {[%emt 00:01:41]} Ke6 {[%clk 00:30:53]} {[%emt
00:00:48]} 35. Re5+ {[%clk 00:06:47]} {[%emt 00:01:58]} Kf7 {[%clk 00:31:19]}
{[%emt 00:00:04]} 36. Rh7+ {[%clk 00:05:51]} {[%emt 00:01:25]} Kg8 {[%clk
00:31:44]} {[%emt 00:00:05]} 37. Ree7 {[%clk 00:02:44]} {[%emt 00:03:37]} Rxd4
{[%clk 00:30:53]} {[%emt 00:01:21]} 38. Rhg7+ {[%clk 00:03:09]} {[%emt
00:00:05]} Kh8 {[%clk 00:31:14]} {[%emt 00:00:09]} 39. Rh7+ {[%clk 00:03:28]}
{[%emt 00:00:11]} Kg8 {[%clk 00:31:41]} {[%emt 00:00:03]} 40. Rhg7+ {[%clk
00:03:47]} {[%emt 00:00:11]} Kh8 {[%clk 00:32:02]} {[%emt 00:00:09]} 41. Rh7+
{[%clk 00:03:36]} {[%emt 00:00:41]} 1/2-1/2

[Event "Schack-SM 2023: Mastarklassen"]
[Site "Helsingborg Arena, Mellersta Stenbocksgatan 14, Helsingborg, Sweden"]
[Date "2023.07.09"]
[Round "9.7"]
[White "Muntean, Victor"]
[Black "Persson, Lars 1971"]
[Result "1-0"]
[TimeControl "90 minutes for 40 moves + 30 minutes for the rest of games + 30 seconds per move from move one."]
[WhiteElo "2097"]
[BlackElo "1941"]

1. e4 {[%clk 01:30:57]} {[%emt 00:00:02]} c5 {[%clk 01:30:35]} {[%emt
00:00:25]} 2. c3 {[%clk 01:31:22]} {[%emt 00:00:05]} e5 {[%clk 01:28:05]}
{[%emt 00:03:00]} 3. Nf3 {[%clk 01:31:13]} {[%emt 00:00:39]} Nc6 {[%clk
01:28:06]} {[%emt 00:00:30]} 4. Bc4 {[%clk 01:29:14]} {[%emt 00:02:28]} Qb6
{[%clk 01:14:49]} {[%emt 00:13:47]} 5. O-O {[%clk 01:26:02]} {[%emt 00:03:42]}
Be7 {[%clk 01:06:34]} {[%emt 00:08:45]} 6. Na3 {[%clk 01:17:10]} {[%emt
00:09:22]} Nf6 {[%clk 01:04:55]} {[%emt 00:02:09]} 7. Re1 {[%clk 01:11:34]}
{[%emt 00:06:06]} d6 {[%clk 00:56:36]} {[%emt 00:08:50]} 8. d4 {[%clk
01:05:13]} {[%emt 00:06:50]} cxd4 {[%clk 00:52:33]} {[%emt 00:04:33]} 9. cxd4
{[%clk 01:04:10]} {[%emt 00:01:34]} exd4 {[%clk 00:34:07]} {[%emt 00:18:56]} 10.
e5 {[%clk 01:03:02]} {[%emt 00:01:38]} dxe5 {[%clk 00:33:55]} {[%emt 00:00:41]}
11. Nxe5 {[%clk 01:03:23]} {[%emt 00:00:08]} O-O {[%clk 00:34:13]} {[%emt
00:00:13]} 12. Nxc6 {[%clk 00:49:43]} {[%emt 00:14:11]} Bxa3 {[%clk 00:34:33]}
{[%emt 00:00:11]} 13. Qxd4 {[%clk 00:42:01]} {[%emt 00:08:11]} Bc5 {[%clk
00:14:21]} {[%emt 00:20:42]} 14. Ne7+ {[%clk 00:42:03]} {[%emt 00:00:28]} Kh8
{[%clk 00:14:41]} {[%emt 00:00:10]} 15. Qf4 {[%clk 00:32:54]} {[%emt 00:09:39]}
Re8 {[%clk 00:04:44]} {[%emt 00:10:27]} 16. Be3 {[%clk 00:29:49]} {[%emt
00:03:35]} Rxe7 {[%clk 00:04:01]} {[%emt 00:01:13]} 17. Bd4 {[%clk 00:30:14]}
{[%emt 00:00:06]} Rxe1+ {[%clk 00:02:15]} {[%emt 00:02:15]} 18. Rxe1 {[%clk
00:30:40]} {[%emt 00:00:05]} Bxd4 {[%clk 00:02:19]} {[%emt 00:00:25]} 19. Re8+
{[%clk 00:30:53]} {[%emt 00:00:18]} Nxe8 {[%clk 00:01:17]} {[%emt 00:01:32]} 20.
Qxf7 {[%clk 00:31:16]} {[%emt 00:00:05]} Bxf2+ {[%clk 00:01:11]} {[%emt
00:00:37]} 21. Kh1 {[%clk 00:31:30]} {[%emt 00:00:15]} Be6 {[%clk 00:01:00]}
{[%emt 00:00:43]} 22. Qf8+ {[%clk 00:31:53]} {[%emt 00:00:06]} Bg8 {[%clk
00:01:20]} {[%emt 00:00:10]} 23. Qxg8# {[%clk 00:32:17]} {[%emt 00:00:06]} 1-0

[Event "Schack-SM 2023: Sverigemastarklassen"]
[Site "Helsingborg Arena, Mellersta Stenbocksgatan 14, Helsingborg, Sweden"]
[Date "2023.07.09"]
[Round "9.3"]
[White "Johansson, Linus"]
[Black "Sivuk, Vitaly"]
[Result "0-1"]
[TimeControl "90 minutes for 40 moves + 30 minutes for the rest of the game + 30 seconds per move from move one."]
[WhiteTitle "IM"]
[BlackTitle "GM"]
[WhiteFideId "1711113"]
[BlackFideId "14116502"]
[WhiteElo "2466"]
[BlackElo "2432"]

1. d4 {[%clk 01:30:57]} {[%emt 00:00:02]} d5 {[%clk 01:30:49]} {[%emt
00:00:11]} 2. c4 {[%clk 01:31:22]} {[%emt 00:00:05]} e6 {[%clk 01:31:12]}
{[%emt 00:00:07]} 3. Nc3 {[%clk 01:31:48]} {[%emt 00:00:04]} c6 {[%clk
01:31:36]} {[%emt 00:00:06]} 4. e3 {[%clk 01:32:07]} {[%emt 00:00:11]} Nf6
{[%clk 01:31:53]} {[%emt 00:00:12]} 5. Nf3 {[%clk 01:32:31]} {[%emt 00:00:06]}
Nbd7 {[%clk 01:32:15]} {[%emt 00:00:08]} 6. b3 {[%clk 01:32:44]} {[%emt
00:00:17]} Bb4 {[%clk 01:31:16]} {[%emt 00:01:29]} 7. Bd2 {[%clk 01:33:05]}
{[%emt 00:00:09]} Qe7 {[%clk 01:28:36]} {[%emt 00:03:09]} 8. Bd3 {[%clk
01:33:02]} {[%emt 00:00:33]} e5 {[%clk 01:24:34]} {[%emt 00:04:32]} 9. dxe5
{[%clk 01:14:08]} {[%emt 00:19:25]} Nxe5 {[%clk 01:24:56]} {[%emt 00:00:08]} 10.
Nxe5 {[%clk 01:14:34]} {[%emt 00:00:04]} Qxe5 {[%clk 01:25:15]} {[%emt
00:00:10]} 11. Rc1 {[%clk 01:15:02]} {[%emt 00:00:03]} d4 {[%clk 01:24:54]}
{[%emt 00:00:51]} 12. Ne2 {[%clk 01:15:24]} {[%emt 00:00:08]} Bxd2+ {[%clk
01:25:15]} {[%emt 00:00:09]} 13. Qxd2 {[%clk 01:15:51]} {[%emt 00:00:03]} dxe3
{[%clk 01:25:31]} {[%emt 00:00:13]} 14. Qxe3 {[%clk 01:16:13]} {[%emt
00:00:08]} Qxe3 {[%clk 01:25:55]} {[%emt 00:00:06]} 15. fxe3 {[%clk 01:16:40]}
{[%emt 00:00:03]} Ng4 {[%clk 01:25:48]} {[%emt 00:00:36]} 16. Kd2 {[%clk
01:15:17]} {[%emt 00:01:54]} Ke7 {[%clk 01:24:12]} {[%emt 00:02:05]} 17. h3
{[%clk 01:15:23]} {[%emt 00:00:24]} Ne5 {[%clk 01:24:21]} {[%emt 00:00:20]} 18.
Be4 {[%clk 01:15:08]} {[%emt 00:00:46]} a5 {[%clk 01:18:18]} {[%emt 00:06:33]}
19. Nc3 {[%clk 01:07:57]} {[%emt 00:07:42]} Be6 {[%clk 01:15:08]} {[%emt
00:03:39]} 20. Na4 {[%clk 01:07:41]} {[%emt 00:00:47]} f5 {[%clk 01:12:34]}
{[%emt 00:03:03]} 21. Bb1 {[%clk 01:06:40]} {[%emt 00:01:32]} g6 {[%clk
01:10:25]} {[%emt 00:02:39]} 22. Ke2 {[%clk 01:06:46]} {[%emt 00:00:24]} Rhd8
{[%clk 01:03:08]} {[%emt 00:07:46]} 23. Rhd1 {[%clk 01:05:59]} {[%emt
00:01:18]} Rxd1 {[%clk 00:56:44]} {[%emt 00:06:54]} 24. Rxd1 {[%clk 01:06:08]}
{[%emt 00:00:21]} Rc8 {[%clk 00:56:13]} {[%emt 00:01:01]} 25. Nc3 {[%clk
01:01:00]} {[%emt 00:05:38]} Nd7 {[%clk 00:55:06]} {[%emt 00:01:36]} 26. Kf3
{[%clk 00:57:02]} {[%emt 00:04:28]} Rf8 {[%clk 00:53:50]} {[%emt 00:01:47]} 27.
h4 {[%clk 00:43:42]} {[%emt 00:13:50]} h6 {[%clk 00:53:15]} {[%emt 00:01:04]}
28. Kg3 {[%clk 00:44:01]} {[%emt 00:00:11]} Ne5 {[%clk 00:52:51]} {[%emt
00:00:53]} 29. Rf1 {[%clk 00:38:58]} {[%emt 00:05:34]} g5 {[%clk 00:45:55]}
{[%emt 00:07:26]} 30. hxg5 {[%clk 00:37:18]} {[%emt 00:02:10]} hxg5 {[%clk
00:44:12]} {[%emt 00:02:12]} 31. Ne2 {[%clk 00:37:25]} {[%emt 00:00:24]} Ng4
{[%clk 00:43:54]} {[%emt 00:00:48]} 32. Nd4 {[%clk 00:23:12]} {[%emt 00:14:44]}
Nxe3 {[%clk 00:43:31]} {[%emt 00:00:51]} 33. Rh1 {[%clk 00:23:37]} {[%emt
00:00:05]} f4+ {[%clk 00:43:31]} {[%emt 00:00:30]} 34. Kf3 {[%clk 00:23:52]}
{[%emt 00:00:16]} g4+ {[%clk 00:40:13]} {[%emt 00:03:47]} 35. Kf2 {[%clk
00:24:07]} {[%emt 00:00:15]} g3+ {[%clk 00:39:31]} {[%emt 00:01:12]} 36. Kf3
{[%clk 00:24:32]} {[%emt 00:00:05]} Bg4+ {[%clk 00:39:54]} {[%emt 00:00:06]} 37.
Ke4 {[%clk 00:24:59]} {[%emt 00:00:04]} Nxg2 {[%clk 00:40:13]} {[%emt
00:00:10]} 38. Ke5 {[%clk 00:25:24]} {[%emt 00:00:05]} Ne3 {[%clk 00:39:58]}
{[%emt 00:00:45]} 39. Bg6 {[%clk 00:25:29]} {[%emt 00:00:26]} g2 {[%clk
00:36:51]} {[%emt 00:03:36]} 40. Rh7+ {[%clk 00:25:54]} {[%emt 00:00:06]} Kd8
{[%clk 00:37:16]} {[%emt 00:00:04]} 41. Rxb7 {[%clk 00:26:18]} {[%emt
00:00:07]} g1=Q {[%clk 00:35:50]} {[%emt 00:01:57]} 42. Be4 {[%clk 00:26:26]}
{[%emt 00:00:22]} Bd7 {[%clk 00:36:00]} {[%emt 00:00:19]} 0-1